Cogmind - Beta 10.2 @@@ ROGUE MODE // 2021.12.18 @ 14:02:43 Player: Crud Result: Destroyed by D-53 Grenadier with Mini Grenade Launcher Performance ------------- Evolutions (0) 0 Regions Visited (2) 400 Robots Destroyed (3) 15 Value Destroyed (75) 75 Prototype IDs (0) 0 Alien Tech Used (0) 0 Bonus (0) 0 TOTAL SCORE: 490 Bonus ------- None Cogmind --------- Core Integrity 0/250 Matter 80/300 Energy 85/100 System Corruption 0% Temperature Cool (0) Movement Core (200) Ox3 Location -10/Mines Parts ------- > --- POWER (1) -------- (None) > --- PROPULSION (2) --- (None) > --- UTILITY (2) ------ Medium Storage Unit Improved Terrain Scanner > --- WEAPON (2) ------- Light Assault Rifle Light Assault Rifle > --- INVENTORY (8) ---- Compact Matter Pod (150) Tractor Beam Improved Light Cannon Peak State ------------ > --- POWER ------------ Ion Engine > --- PROPULSION ------- Compact Wheel Compact Wheel > --- UTILITY ---------- Small Storage Unit Medium Armor Plating > --- WEAPON ----------- Improved Light Cannon Improved Light Cannon > --- INVENTORY -------- Light Ion Engine Improved Terrain Scanner Tractor Beam Light Assault Rifle [Rating: 10] Favorites ----------- Power Ion Engine Engine Ion Engine Propulsion Compact Wheel Wheel Compact Wheel Utility Medium Armor Plating Device Improved Terrain Scanner Storage Medium Storage Unit Protection Medium Armor Plating Weapon Improved Light Cannon Ballistic Gun Light Assault Rifle Ballistic Cannon Improved Light Cannon Launcher Rocket Launcher Build | -11 -10 -10 ------- Run | Scr Mat Min Slots Evolved . | . . . Power . | . . . Propulsion . | . . . Utility . | . . . Weapon . | . . . Parts Attached 17 | 7 3 7 Power 2 | 1 . 1 Engine 2 | 1 . 1 Core . | . . . Reactor . | . . . Propulsion 2 | 2 . . Treads . | . . . Leg . | . . . Wheel 2 | 2 . . Hover . | . . . Flight . | . . . Utility 5 | 2 1 2 Device 1 | . . 1 Storage 3 | 2 . 1 Processor . | . . . Hackware . | . . . Protection 1 | . 1 . Artifact . | . . . Weapon 8 | 2 2 4 Energy Gun . | . . . Energy Cannon . | . . . Ballistic Gun 4 | 2 . 2 Ballistic Cannon 3 | . 2 1 Launcher 1 | . . 1 Special Weapon . | . . . Impact Weapon . | . . . Slashing Weapon . | . . . Piercing Weapon . | . . . Special Melee Weapon . | . . . Unidentified Prototypes . | . . . Parts Lost 8 | . 1 7 Power 2 | . . 2 Propulsion 2 | . 1 1 Utility 1 | . . 1 Weapon 3 | . . 3 Highest Loss Streak 5 | . 1 5 Average Slot Usage (%) 81 | . 94 77 Engine 11 | . 14 10 Wheel 15 | . 22 12 Device 1 | . . 2 Storage 14 | . 14 14 Protection 10 | . 14 9 Ballistic Gun 2 | . 3 1 Ballistic Cannon 22 | . 24 21 Launcher 2 | . . 3 Naked Turns . | . . . Heaviest Build 28 | 15 24 28 Greatest Support 32 | 32 32 16 Greatest Overweight (x) 1 | 1 1 1 Average Overweight (x) . | . . . Largest Inventory Capacity 8 | 8 8 8 Average Capacity 7 | 5 6 7 Most Carried 8 | 6 6 8 Average Carried 5 | 2 5 7 Final Capacity 8 | 8 6 8 Final Carried 6 | 3 6 3 Class Distribution -------------------- 100% | Mutant Dominant Class ---------------- Mutant | -10/Materials Mutant | -10/Mines Resources | -11 -10 -10 ----------- Run | Scr Mat Min Matter Collected 319 | 276 . 43 Remotely . | . . . Salvage Created 114 | 82 9 23 Parts 8 | 3 5 . Haulers Intercepted . | . . . Recyclers Shooed . | . . . Parts Field Recycled . | . . . Retrieved Matter . | . . . Parts Self-Destructed . | . . . Prevented . | . . . Kills | -11 -10 -10 ------- Run | Scr Mat Min Combat Hostiles Destroyed 10 | . . 10 Cannons 6 | . . 6 AOE 4 | . . 4 Classes Destroyed 4 | 1 1 2 Recycler 1 | 1 . . Watcher 1 | . 1 . Demolisher 1 | . . 1 Assembled 9 | . . 9 Best Kill Streak 9 | 1 1 9 Combat Bots Only 9 | . . 9 Max Kills in Single Turn 2 | 1 1 2 Gunslinging . | . . . Exploded 2 | . . 2 Melee . | . . . Uniques/NPCs Destroyed . | . . . Combat | -11 -10 -10 -------- Run | Scr Mat Min Damage Taken 1140 | . 84 1056 Core 259 | . 6 253 Absorbed by Shields . | . . . Core Remaining (%) 100 | 100 . . Volleys Fired 31 | 3 1 27 Largest 2 | 2 2 2 Hottest 78 | 40 78 78 Shots Fired 58 | 6 2 50 Gun 17 | 6 . 11 Cannon 37 | . 2 35 Launcher 4 | . . 4 Special . | . . . Kinetic 54 | 6 2 46 Thermal . | . . . Explosive 4 | . . 4 Electromagnetic . | . . . Robot Hit Streak 6 | 2 3 6 Robot Miss Streak 4 | 1 . 4 Penetration Max . | . . . Secondary Targets . | . . . Shots Hit Robots 33 | 4 1 28 Core Hits 18 | 2 1 15 Critical Hits . | . . . Critical Kills . | . . . Critical Parts Destroyed . | . . . Melee Attacks . | . . . Impact . | . . . Slashing . | . . . Piercing . | . . . Sneak Attacks . | . . . Combat Hostiles . | . . . Follow-up Attacks . | . . . Damage Inflicted 745 | 32 21 692 Guns 83 | 32 . 51 Cannons 394 | . 21 373 Explosions 268 | . . 268 Melee . | . . . Ramming . | . . . Kinetic 477 | 32 21 424 Thermal . | . . . Explosive 268 | . . 268 Electromagnetic . | . . . Impact . | . . . Slashing . | . . . Piercing . | . . . Highest Corruption . | . . . Average Corruption . | . . . Corruption Purged . | . . . Overload Shots . | . . . Overflow Damage 16 | . . 16 Projectiles 2 | . . 2 Explosions 14 | . . 14 Melee . | . . . Knockbacks 1 | . . 1 Impact . | . . . Kinetic 1 | . . 1 Secondary . | . . . Self-Inflicted Damage 128 | . . 128 Shots 3 | . . 3 Rammed . | . . . Targets Rammed . | . . . Kicked . | . . . Crushed . | . . . Highest Temperature 337 | . 27 337 Average Temperature 134 | . 16 140 Received Heat Transfer 80 | . . 80 Siege Activations . | . . . Robots Corrupted . | . . . Combat Hostiles . | . . . Parts Fried . | . . . Impact Corruptions . | . . . Robots Melted . | . . . Combat Hostiles . | . . . Parts Melted . | . . . Heat Transferred . | . . . Parts Sabotaged . | . . . Parts Stolen . | . . . Parts Stripped . | . . . Power Chain Reactions . | . . . Missiles Intercepted . | . . . Alert | -11 -10 -10 ------- Run | Scr Mat Min Peak Influence 20 | 5 10 20 Initial 3 | . 3 . Average 1 | 1 3 1 Maximum Alert Level . | . . . Low Security (%) 100 | 100 100 100 Level 1 . | . . . Level 2 . | . . . Level 3 . | . . . Level 4 . | . . . Level 5 . | . . . High Security . | . . . Max Security . | . . . Squads Dispatched 1 | . 1 . Investigation . | . . . Extermination . | . . . Reinforcement 1 | . 1 . Assault . | . . . Garrison . | . . . Intercept . | . . . Construction Impeded . | . . . Haulers Reinforced . | . . . Stealth | -11 -10 -10 --------- Run | Scr Mat Min Distress Signals 1 | . . 1 Communications Jammed . | . . . Distress Signals . | . . . Times Spotted 19 | . 3 16 Peak Tracking Total 11 | . 3 11 Tactical Retreats 1 | . . 1 Traps | -11 -10 -10 ------- Run | Scr Mat Min Traps Triggered 1 | . 1 . Indirectly . | . . . Trap Hack Attempts . | . . . Triggered . | . . . Disarmed . | . . . Reprogrammed . | . . . Reused . | . . . Traps Extracted . | . . . Installed . | . . . Triggered . | . . . Machines | -11 -10 -10 ---------- Run | Scr Mat Min Machines Disabled . | . . . Max in Single Turn . | . . . Machines Sabotaged . | . . . Garrisons Compromised . | . . . Overloaded Fab Kills . | . . . Fab Network Shutdowns . | . . . Hacking | -11 -10 -10 --------- Run | Scr Mat Min Machines Accessed . | . . . Terminals . | . . . Fabricators . | . . . Repair Stations . | . . . Recycling Units . | . . . Scanalyzers . | . . . Garrison Access . | . . . Total Hacks . | . . . Successful . | . . . Failed . | . . . Catastrophic . | . . . Database Lockouts . | . . . Manual . | . . . Terminals . | . . . Fabricators . | . . . Repair Stations . | . . . Recycling Units . | . . . Scanalyzers . | . . . Garrison Access . | . . . Terminal Hacks . | . . . Fabricator Hacks . | . . . Repair Station Hacks . | . . . Recycling Unit Hacks . | . . . Scanalyzer . | . . . Garrison Access Hacks . | . . . Unauthorized Hacks . | . . . Terminals . | . . . Fabricators . | . . . Repair Stations . | . . . Recycling Units . | . . . Scanalyzers . | . . . Garrison Access . | . . . Data Cores Recovered . | . . . Used . | . . . Hacking Detections . | . . . Full Trace Events . | . . . Feedback Events . | . . . Feedback Blocked . | . . . Robot Schematics Acquired . | . . . Robots Built . | . . . Matter . | . . . Time . | . . . Total Robot Build Rating . | . . . Part Schematics Acquired . | . . . Parts Built . | . . . Matter . | . . . Time . | . . . Total Part Build Rating . | . . . Parts Repaired . | . . . Time . | . . . Parts Recycled . | . . . Recycled Matter . | . . . Retrieved Matter . | . . . Retrieved Components . | . . . Parts Scanalyzed . | . . . Part Schematics Acquired . | . . . Parts Damaged . | . . . Bothacking | -11 -10 -10 ------------ Run | Scr Mat Min Used RIF Installer . | . . . Robots Hacked . | . . . Non-combat . | . . . Combat . | . . . Robot Hacks Applied . | . . . Relay Couplers Released . | . . . Robots Rewired . | . . . Allies Hacked . | . . . Hacks Repelled . | . . . Allies | -11 -10 -10 -------- Run | Scr Mat Min Total Allies . | . . . Largest Group . | . . . Highest-Rated Group . | . . . Highest-Rated Ally . | . . . Total Orders . | . . . Ally Attacks . | . . . Total Damage . | . . . Kills . | . . . Allies Corrupted . | . . . Allies Melted . | . . . Intel | -11 -10 -10 ------- Run | Scr Mat Min Robot Analysis Total . | . . . Derelict Logs Recovered . | . . . Drone Launches . | . . . Drone Recoveries . | . . . Exploration | -11 -10 -10 ------------- Run | Scr Mat Min Turns Passed 382 | 70 81 231 Spaces Moved 225 | 58 65 102 Core 28 | 28 . . Treads . | . . . Legs . | . . . Wheels 197 | 30 65 102 Hover . | . . . Flight . | . . . Fastest Speed 50 | 50 100 100 Average Speed 100 | 80 104 108 Slowest Speed 110 | 100 110 110 Overloaded Moves . | . . . Propulsion Burnouts . | . . . Robots Hopped . | . . . Cave-ins Triggered . | . . . Exploration Rate (%) 11 | 4 14 15 Regions Visited 2 Branch Regions 1 Pre-discovered Areas . | . . . Known Exits Taken . | . . . Unknown Exits Taken 2 | 1 1 . Scrap Searched . | . . . Spaces Dug . | . . . Terrain Destroyed 54 | . . 54 Melee . | . . . Projectile 4 | . . 4 AOE 50 | . . 50 Terrain Rammed . | . . . Walls Destroyed . | . . . Machines Disabled . | . . . Actions | -11 -10 -10 --------- Run | Scr Mat Min Total 329 | 76 77 176 Wait 37 | . . 37 Move 223 | 57 64 102 Hop . | . . . Pick Up 17 | 9 6 2 Fast Attach 1 | 1 . . Attach 14 | 6 3 5 Detach . | . . . Swap 2 | . . 2 Drop 4 | . 3 1 Fire 31 | 3 1 27 Melee . | . . . Ram . | . . . Kick . | . . . Crush . | . . . Escape Stasis . | . . . Rewire . | . . . Trap . | . . . Miscellaneous . | . . . Route ------- -11/Scrapyard -10/Materials -10/Mines History --------- Turn | Location | Event 5 | -11/Scrapyard | Discovered new exit (range 16) 71 | -11/Scrapyard | Entered Materials 124 | -10/Materials | Discovered new exit (range 8) 152 | -10/Materials | Entered Mines 159 | -10/Mines | Received a Rocket Launcher from a helpful Derelict 237 | -10/Mines | Assembled infested the area 320 | -10/Mines | Build established: Mutant 326 | -10/Mines | Destroyed 9 combat bots 360 | -10/Mines | Core integrity fell below 50% 368 | -10/Mines | Core integrity fell below 20% 383 | -10/Mines | Destroyed by D-53 Grenadier with Mini Grenade Launcher Last Messages --------------- 00301_ as-86701 destroyed. 00301_ as-73226 destroyed. 00301_ Med. Armor Plating destroyed. 00301_ Destroyed Med. Armor Plating. 00301_ Ion Engine destroyed. 00301_ Destroyed Ion Engine. 00305_ Destroyed Asb. F-torch. 00305_ as-37190 destroyed. 00305_ as-50964 destroyed. 00358_ Rocket Launcher destroyed. 00358_ Destroyed Rocket Launcher. 00360_ The unstable cave ceiling collapses. 00363_ Com. Wheel destroyed. 00363_ Imp. Light Cannon destroyed. 00363_ Lgt. Ion Engine destroyed. 00365_ D-53 Grenadier destroyed. 00368_ D-53 Grenadier knocked back. 00371_ The unstable cave ceiling collapses. 00371_ Imp. Light Cannon destroyed. 00372_ The unstable cave ceiling collapses. Map ----- +----------------------------------------------------+ | ?????????????????????????????####????????????? | | ????????????????????????????## ##???????????? | | ??????????????????????????### #???????????? | | ????????????????????????### #???????????? | | ???????????????????????## #???????????? | | ???????????????????????# #???????????? | | ???????????????????????# !! ####???????????? | | ???????????????????????# ! #??????????????? | | ??????????????????????## !! #??????????????? | | ?????????????????????## ! #??????????????? | | ?????????????????????# ##?????????????? | | ?????????????????????# ### ##????????????? | | ?????????????????????# ## ##???????????? | | ???????????????? ???# ### ##??????????? | | ????????????????" ???## ### ##?????????? | | ???????????????"" ???## ##????????? | | ???????????????"" ??# ##???????? | | ???????????????? ##### ### ##??????? | | ???????????????"? ## #??????? | | ???????????????"" ## #??????? | | ????????????" """ #??????? | | ?????????????? # ## #??????? | | ??????????????""" # ##??????? | | ??????????????""" ##??#????? | | ??????????????""" # ####????????? | | ?????????? @ ##???????????? | | ??????????????""" # ##????????????? | | ??????????????""" # ##?????????????? | | ??????????????"""???# ##??????????????? | | ??????????? ??? ????# d ##???????????????? | | ????????????????????####; ##????????????????? | | ???????????????????????## ##??????????????#??? | | ????????????????????????# #??????????????????? | | ??????????????? ???????? ??????????????????? | | ???????????????????????? ??????????????????? | | ??????????????????????? % ??????????????????? | | ???????????????????? ?? #??????????????????? | | ?????????????????????? # ??????????????????? | | ??????????????????????? ??????????????????? | | ????????????????????????# ??????????????????? | | ?????????????????????????##??????????????????? | | ?????????????????????????????????????????????? | | ?????????????????????????????????????????????? | | ?????????????????????????????????????????????? | | ?????????????????????????????????????????????? | | ?????????????????????????????????????????????? | | ?????????????????????????????????????????????? | | ?????????????????????????????????????????????? | | ?????????????????????????????????????????????? | | ?????????????????????????????????????????????? | +----------------------------------------------------+ Best States ------------- Heat Dissipation 25 Energy Generation 10 Energy Capacity 250 Matter Stores 300 Matter Capacity 300 Sight Range 16 Terrain Scan Range 16 Terrain Scan Density 10 Armor Coverage 225 Evasion (%) 40 Item Schematics ----------------- None Robot Schematics ------------------ None Fabricated ------------ Nothing Alien Tech Used ----------------- None Achievements -------------- None Challenges ------------ None Game ------ Seed HackingHypercooledTerminator Manual? 0 Play Time 00:08:40 Cumulative 7.6 hours Start 2021.12.18 @ 13:55:12 End 2021.12.18 @ 14:02:43 Sessions 1 Manual Loads 0 Difficulty Rogue Special Mode None Game No. 9 Rogue 9 Adventurer 0 Explorer 0 Win Type - Total 0 Types 0/0/0/0/0/0/0/0/0 Lore% 6 Gallery% 15 Achievement% 11 Wizard Run 0 Options --------- ASCII 0 Keyboard 0 Movement Mouse Keybinds 0 Fullscreen 1 Font 36/Smallcaps Map View 76x50 Tactical HUD 1 Map Filters NONE Filters NONE Steam 1 RUN: 3e5daffe-fa52-4c98-95fa-751b223e9bab